Cogmind - Beta 16.1 --- EXPLORER MODE // 2026.02.14 @ 22:09:00 Player: Genju Result: Destroyed by S-10 Pest with Light Assault Rifle Performance ------------- Evolutions (2) 1000 Regions Visited (5) 1000 Robots Destroyed (40) 200 Value Destroyed (1201) 1201 Prototype IDs (23) 460 Alien Tech Used (0) 0 Bonus (300) 300 TOTAL SCORE: 4161 Bonus ------- Aligned with FarCom 300 Cogmind --------- Core Integrity 0/550 Matter 300/300 Energy 100/100 System Corruption 1% Temperature Cool (0) Movement Core (200) Ox3 Location -8/Materials Parts ------- > --- POWER (2) -------- (None) > --- PROPULSION (4) --- (None) > --- UTILITY (4) ------ Medium Storage Unit Visual Processing Unit Advanced Targeting Computer > --- WEAPON (2) ------- (None) > --- INVENTORY (10) --- Light Nuclear Core Aluminum Leg Structural Scanner Terrain Scanner ECM Suite System Shield Recalibrator Peak State ------------ > --- POWER ------------ Light Deuterium Engine Light Nuclear Core > --- PROPULSION ------- Aluminum Leg Carbon-fiber Leg Potential Leg Potential Leg > --- UTILITY ---------- Improved Heat Sink Medium Storage Unit Visual Processing Unit Advanced Targeting Computer > --- WEAPON ----------- EM Pulse Gun Rocket Launcher > --- INVENTORY -------- Light Nuclear Core Aluminum Leg Aluminum Leg Structural Scanner Terrain Scanner ECM Suite System Shield Recalibrator Medium Laser Mining Laser [Rating: 43] Favorites ----------- Power Light Nuclear Core Engine Ion Engine Power Core Light Nuclear Core Propulsion Aluminum Leg Leg Aluminum Leg Utility Medium Storage Unit Device Improved Heat Sink Storage Medium Storage Unit Processor Targeting Computer Weapon Medium Laser Energy Gun Medium Laser Ballistic Gun Assault Rifle Launcher Rocket Launcher Special Weapon Mining Laser Build | -11 -10 -10 -10 -9 -8 ------- Run | Yrd Mat Min Exi Min Mat Slots Evolved 5 | . 1 . . . 4 Power 1 | . . . . . 1 Propulsion 2 | . 1 . . . 1 Utility 2 | . . . . . 2 Weapon . | . . . . . . Parts Attached 26 | 6 6 1 2 1 10 Power 6 | 1 1 1 . . 3 Engine 3 | 1 . . . . 2 Core 3 | . 1 1 . . 1 Reactor . | . . . . . . Propulsion 7 | 2 2 . 2 . 1 Treads . | . . . . . . Leg 7 | 2 2 . 2 . 1 Wheel . | . . . . . . Hover . | . . . . . . Flight . | . . . . . . Utility 6 | 3 . . . . 3 Device 2 | 1 . . . . 1 Storage 1 | 1 . . . . . Processor 3 | 1 . . . . 2 Hackware . | . . . . . . Protection . | . . . . . . Artifact . | . . . . . . Weapon 7 | . 3 . . 1 3 Energy Gun 4 | . 1 . . 1 2 Energy Cannon . | . . . . . . Ballistic Gun 1 | . 1 . . . . Ballistic Cannon . | . . . . . . Launcher 1 | . . . . . 1 Special Weapon 1 | . 1 . . . . Impact Weapon . | . . . . . . Slashing Weapon . | . . . . . . Piercing Weapon . | . . . . . . Special Melee Weapon . | . . . . . . Unidentified Prototypes . | . . . . . . Parts Lost 8 | . . . . . 8 Power 1 | . . . . . 1 Propulsion 4 | . . . . . 4 Utility 1 | . . . . . 1 Weapon 2 | . . . . . 2 Highest Loss Streak 6 | . . . . . 6 To Critical Strikes . | . . . . . . Average Backups 9 | 5 9 10 9 10 8 Power . | . . . . . . Propulsion 1 | . 1 1 1 2 1 Utility 4 | 1 3 5 5 5 4 Weapon 3 | 1 3 4 3 3 2 Tool/Special . | . . . . . . Unused Backups 14 | . 7 . 2 . 5 Power 2 | . 1 . . . 1 Propulsion 3 | . 2 . 1 . . Utility 6 | . 2 . . . 4 Weapon 3 | . 2 . 1 . . Tool/Special . | . . . . . . Average Slot Usage (%) 93 | . 95 100 100 100 84 Engine 4 | . 6 . . . 6 Core 7 | . 5 12 12 12 5 Leg 33 | . 35 37 37 37 27 Device 1 | . . . . . 5 Storage 10 | . 12 12 12 12 8 Processor 13 | . 12 12 12 12 15 Energy Gun 11 | . 10 12 12 18 11 Ballistic Gun 4 | . 10 6 . . . Special Weapon 3 | . . 5 12 5 . Peak Build Rating 43 | 5 11 11 29 29 43 Average Rating 19 | 4 9 11 24 29 32 On Entrance 14 | . 5 11 11 29 29 Avg Prop Armor Cover (%) 7 | . . . . . 7 Naked Turns . | . . . . . . Heaviest Build 27 | 15 19 19 18 19 27 Greatest Support 85 | 20 30 30 70 70 85 Greatest Overweight (x) 5 | 1 . . . . 5 Average Overweight (x) . | . . . . . . Largest Inventory Capacity 10 | 10 10 10 10 10 10 Average Capacity 9 | 7 10 10 10 10 10 Most Carried 10 | 9 10 10 10 10 10 Average Carried 9 | 5 9 9 9 10 8 Final Capacity 10 | 10 10 10 10 10 10 Final Carried 10 | 9 10 10 10 10 7 Class Distribution -------------------- 100% | Hacker-Mutant Dominant Class ---------------- Hacker-Mutant | -10/Materials Hacker-Mutant | -10/Mines Hacker-Mutant | -10/Exiles Hacker-Mutant | -9/Mines Hacker-Mutant | -8/Materials Resources | -11 -10 -10 -10 -9 -8 ----------- Run | Yrd Mat Min Exi Min Mat Matter Collected 708 | 258 206 68 . 30 146 Remotely . | . . . . . . Salvage Created 1454 | . 442 178 . 36 798 Parts 70 | . 26 7 . 1 36 Haulers Intercepted . | . . . . . . Recyclers Shooed 1 | . . . . . 1 Parts Field Recycled . | . . . . . . Retrieved Matter . | . . . . . . Parts Self-Destructed . | . . . . . . Prevented . | . . . . . . Parts Restored . | . . . . . . Kills | -11 -10 -10 -10 -9 -8 ------- Run | Yrd Mat Min Exi Min Mat Combat Hostiles Destroyed 29 | . 8 4 . 1 16 Melee 2 | . . . . . 2 Guns 23 | . 8 4 . 1 10 AOE 4 | . . . . . 4 Classes Destroyed 8 | . 5 . . . 3 Worker 2 | . 1 . . . 1 Recycler 1 | . . . . . 1 Mechanic 1 | . 1 . . . . Operator 1 | . . . . . 1 Watcher 6 | . 3 . . . 3 Swarmer 7 | . 2 . . . 5 Grunt 19 | . 6 4 . 1 8 Sentry 3 | . . . . . 3 Best Kill Streak 7 | . 5 2 . 1 7 Combat Bots Only 5 | . 4 2 . 1 5 Max Kills in Single Turn 2 | . 2 1 . 1 2 Gunslinging 1 | . . . . . 1 Exploded 2 | . . . . . 2 Melee 1 | . . . . . 1 Uniques/NPCs Destroyed . | . . . . . . Combat | -11 -10 -10 -10 -9 -8 -------- Run | Yrd Mat Min Exi Min Mat Hostile Shots Fired 349 | . 38 26 . 11 274 Missed 94 | . 8 8 . 5 73 Hits 255 | . 30 18 . 6 201 Projectile 255 | . 30 18 . 6 201 Critical Strikes 14 | . . 2 . . 12 Damage Taken 2032 | . 218 141 . 47 1626 Core 612 | . 21 39 . . 552 Absorbed by Shields . | . . . . . . Ignored by Resistances 1278 | . 144 88 . 30 1016 Regen/Repaired (Parts) 158 | . 158 . . . . Core Remaining (%) 88 | 100 . . . 76 . Volleys Fired 101 | . 29 16 . 7 49 Largest 2 | . 2 2 . 2 2 Hottest 150 | . 70 70 . 90 150 Shots Fired 195 | . 57 32 . 14 92 Gun 192 | . 57 32 . 14 89 Cannon . | . . . . . . Launcher 2 | . . . . . 2 Special 1 | . . . . . 1 Kinetic 44 | . 28 16 . . . Thermal 57 | . 29 16 . 7 5 Explosive 2 | . . . . . 2 Electromagnetic 92 | . . . . 7 85 Robot Hit Streak 27 | . 27 16 . 7 20 Robot Miss Streak 3 | . 3 1 . 1 2 Penetration Max . | . . . . . . Secondary Targets 5 | . 2 . . 1 2 Max Gunslinging Chain 1 | . 1 . . 1 1 Shots Hit Robots 158 | . 47 29 . 12 70 Core Hits 90 | . 23 10 . 4 53 Critical Kills 1 | . 1 . . . . Critical Parts Destroyed . | . . . . . . Critical Strikes 11 | . 5 2 . 1 3 Burn 7 | . 4 2 . . 1 Destroy 1 | . 1 . . . . Corrupt 3 | . . . . 1 2 Melee Attacks . | . . . . . . Impact . | . . . . . . Slashing . | . . . . . . Piercing . | . . . . . . Sneak Attacks . | . . . . . . Combat Hostiles . | . . . . . . Follow-up Attacks . | . . . . . . Damage Inflicted 2822 | . 602 377 . 139 1704 Guns 2085 | . 602 377 . 139 967 Cannons . | . . . . . . Explosions 334 | . . . . . 334 Melee . | . . . . . . Ramming 379 | . . . . . 379 Kinetic 475 | . 289 186 . . . Thermal 843 | . 313 191 . 63 276 Explosive 131 | . . . . . 131 Electromagnetic 994 | . . . . 76 918 Impact . | . . . . . . Slashing . | . . . . . . Piercing . | . . . . . . Highest Corruption 1 | . . . . . 1 Average Corruption 1 | . . . . . 1 Corruption Purged . | . . . . . . Corruption Blocked . | . . . . . . Effects 7 | . . . . . 7 Message Errors 2 | . . . . . 2 Matter Fused 2 | . . . . . 2 Energy Discharges 1 | . . . . . 1 Misfires 2 | . . . . . 2 Overload Shots . | . . . . . . Overflow Damage 1 | . . . . . 1 Projectiles . | . . . . . . Explosions 1 | . . . . . 1 Melee . | . . . . . . Knockbacks 1 | . . . . . 1 Impact 1 | . . . . . 1 Kinetic . | . . . . . . Secondary . | . . . . . . Self-Inflicted Damage 1 | . . . . . 1 Shots . | . . . . . . Rammed 1 | . . . . . 1 Targets Rammed 139 | . . . . . 139 Kicked 138 | . . . . . 138 Crushed . | . . . . . . Highest Temperature 312 | . 249 204 . 126 312 Average Temperature 77 | . 68 84 . 63 87 Received Heat Transfer 1485 | . 165 168 . 45 1107 Siege Activations . | . . . . . . Martial Activations . | . . . . . . Shielding Activations . | . . . . . . Robots Disrupted . | . . . . . . Combat Hostiles . | . . . . . . Robots Corrupted . | . . . . . . Combat Hostiles . | . . . . . . Parts Fried 8 | . . . . . 8 Impact Corruptions . | . . . . . . Robots Melted . | . . . . . . Combat Hostiles . | . . . . . . Parts Melted 4 | . 3 1 . . . Heat Transferred 2531 | . 1221 703 . 185 422 Parts Sabotaged . | . . . . . . Parts Stolen . | . . . . . . Parts Stripped . | . . . . . . Power Chain Reactions 3 | . . . . . 3 Alert | -11 -10 -10 -10 -9 -8 ------- Run | Yrd Mat Min Exi Min Mat Maximum Alert Level . | . . . . . . Low Security (%) 100 | 100 100 100 . 100 100 Level 1 . | . . . . . . Level 2 . | . . . . . . Level 3 . | . . . . . . Level 4 . | . . . . . . Level 5 . | . . . . . . High Security . | . . . . . . Max Security . | . . . . . . Peak Influence 149 | . 90 70 . 5 149 Initial 1 | . . . . . 1 Average 9 | . 6 6 . . 17 Influence Increases 916 | . 277 115 . 20 504 Destroy 0b10 Robot/C 580 | . 160 80 . 20 320 Destroy 0b10 Robot/NC 55 | . 25 . . . 30 Destroy Leader 152 | . 46 20 . . 86 Successful Hack 19 | . 16 . . . 3 Disable Machine 4 | . . . . . 4 Destroy Structure 31 | . . . . . 31 Lose Combat Pursuer 75 | . 30 15 . . 30 Influence Decreases 916 | . 277 115 . 15 509 Entered New Map 4 | . . . . . 4 Time Decay 867 | . 242 115 . 15 495 Lost Part 10 | . . . . . 10 Purge Threat 35 | . 35 . . . . Squads Dispatched 3 | . . . . . 3 Investigation . | . . . . . . Extermination . | . . . . . . Reinforcement 2 | . . . . . 2 Assault . | . . . . . . Garrison 1 | . . . . . 1 Intercept . | . . . . . . Searches Triggered . | . . . . . . Construction Impeded . | . . . . . . Haulers Reinforced . | . . . . . . Active Scanning Responses . | . . . . . . Cargo Convoy Interrupts . | . . . . . . Stealth | -11 -10 -10 -10 -9 -8 --------- Run | Yrd Mat Min Exi Min Mat Distress Signals 6 | . 1 . . . 5 Communications Jammed . | . . . . . . Distress Signals . | . . . . . . Times Spotted 56 | . 12 5 . 4 35 Peak Tracking Total 8 | . 3 2 . 2 8 Tactical Retreats 5 | . 2 1 . . 2 Traps | -11 -10 -10 -10 -9 -8 ------- Run | Yrd Mat Min Exi Min Mat Traps Triggered 7 | . 2 . . . 5 Indirectly . | . . . . . . Trap Hack Attempts . | . . . . . . Triggered . | . . . . . . Disarmed . | . . . . . . Reprogrammed . | . . . . . . Reused . | . . . . . . Traps Extracted . | . . . . . . Installed . | . . . . . . Triggered . | . . . . . . Machines | -11 -10 -10 -10 -9 -8 ---------- Run | Yrd Mat Min Exi Min Mat Machines Disabled 1 | . . . . . 1 Max in Single Turn 1 | . . . . . 1 Machines Repaired . | . . . . . . Machines Dismantled . | . . . . . . Machines Sabotaged . | . . . . . . Overloaded Fab Kills . | . . . . . . Hacking | -11 -10 -10 -10 -9 -8 --------- Run | Yrd Mat Min Exi Min Mat Machines Accessed 18 | . 10 . 5 . 3 Terminals 10 | . 7 . . . 3 Fabricators . | . . . . . . Repair Stations 1 | . 1 . . . . Recycling Units 2 | . 2 . . . . Scanalyzers . | . . . . . . Garrison Access . | . . . . . . Total Hacks 104 | . 48 . 50 . 6 Successful 89 | . 36 . 50 . 3 Failed 15 | . 12 . . . 3 Catastrophic . | . . . . . . Database Lockouts . | . . . . . . Manual 43 | . 35 . 1 . 7 Terminals 39 | . 33 . . . 6 Fabricators . | . . . . . . Repair Stations 10 | . 10 . . . . Recycling Units 5 | . 5 . . . . Scanalyzers . | . . . . . . Garrison Access . | . . . . . . Terminal Hacks 60 | . 10 . 50 . . Record 49 | . . . 49 . . Part Schematic 7 | . 7 . . . . Robot Analysis 1 | . 1 . . . . Unreport Threat 1 | . 1 . . . . Zone Layout 1 | . 1 . . . . Proto ID Catalog 1 | . . . 1 . . Fabricator Hacks . | . . . . . . Repair Station Hacks 10 | . 10 . . . . Scan Component 5 | . 5 . . . . Repair 5 | . 5 . . . . Recycling Unit Hacks 2 | . 2 . . . . Retrieve Components 2 | . 2 . . . . Scanalyzer . | . . . . . . Garrison Access Hacks . | . . . . . . Unauthorized Hacks 17 | . 14 . . . 3 Terminals 14 | . 11 . . . 3 Botnet 9 | . 6 . . . 3 Skim 5 | . 5 . . . . Fabricators . | . . . . . . Repair Stations . | . . . . . . Recycling Units 3 | . 3 . . . . Reject 2 | . 2 . . . . Recyclers 1 | . 1 . . . . Scanalyzers . | . . . . . . Garrison Access . | . . . . . . Data Cores Recovered . | . . . . . . Used . | . . . . . . Hacking Detections 13 | . 10 . . . 3 Full Trace Events . | . . . . . . Feedback Events . | . . . . . . Feedback Blocked . | . . . . . . Robot Schematics Acquired . | . . . . . . Robots Built . | . . . . . . Authchips . | . . . . . . Time . | . . . . . . Total Robot Build Rating . | . . . . . . Part Schematics Acquired 7 | . 7 . . . . Parts Built . | . . . . . . Authchips . | . . . . . . Time . | . . . . . . Total Part Build Rating . | . . . . . . Part Studies Acquired . | . . . . . . Parts Repaired 5 | . 5 . . . . Time 142 | . 142 . . . . Parts Recycled . | . . . . . . Recycled Matter . | . . . . . . Retrieved Matter . | . . . . . . Retrieved Components 10 | . 10 . . . . Parts Scanalyzed . | . . . . . . Part Schematics Acquired . | . . . . . . Parts Damaged . | . . . . . . Bothacking | -11 -10 -10 -10 -9 -8 ------------ Run | Yrd Mat Min Exi Min Mat Used RIF Installer . | . . . . . . Robots Hacked . | . . . . . . Non-combat . | . . . . . . Combat . | . . . . . . Robot Hacks Applied . | . . . . . . Relay Couplers Released . | . . . . . . Fabnet Peak Effective % . | . . . . . . Robots Rewired . | . . . . . . Allies Hacked . | . . . . . . Hacks Repelled . | . . . . . . Allies | -11 -10 -10 -10 -9 -8 -------- Run | Yrd Mat Min Exi Min Mat Total Allies . | . . . . . . Largest Group . | . . . . . . Highest-Rated Group . | . . . . . . Highest-Rated Ally . | . . . . . . Total Orders . | . . . . . . Ally Attacks . | . . . . . . Total Damage . | . . . . . . Kills . | . . . . . . Allies Corrupted . | . . . . . . Allies Melted . | . . . . . . Intel | -11 -10 -10 -10 -9 -8 ------- Run | Yrd Mat Min Exi Min Mat Active Infowar (turns) 1706 | 37 . . . . 1669 Optics 1669 | . . . . . 1669 Terrain 37 | 37 . . . . . Robot Analysis Total 1 | . 1 . . . . Derelict Logs Recovered . | . . . . . . Drone Launches . | . . . . . . Drone Recoveries . | . . . . . . Exploration | -11 -10 -10 -10 -9 -8 ------------- Run | Yrd Mat Min Exi Min Mat Turns Passed 5570 | 137 1900 901 803 158 1671 Spaces Moved 3709 | 99 1350 650 762 124 724 Core 62 | 6 . . . . 56 Treads . | . . . . . . Legs 3647 | 93 1350 650 762 124 668 Wheels . | . . . . . . Hover . | . . . . . . Flight . | . . . . . . Fastest Speed 50 | 50 120 120 100 100 90 Average Speed 114 | 117 120 120 104 100 112 Slowest Speed 300 | 120 120 120 120 100 300 Overloaded Moves . | . . . . . . Propulsion Burnouts . | . . . . . . Robots Hopped . | . . . . . . Potential Cave-ins . | . . . . . . Cave-ins Triggered . | . . . . . . Exploration Rate (%) 65 | 4 98 99 94 41 58 Regions Visited 5 Branch Regions 3 Pre-discovered Areas 1 | . . . 1 . . Known Exits Taken 5 | 1 1 1 1 1 . Unknown Exits Taken . | . . . . . . Scrap Searched 1 | . . 1 . . . Spaces Dug . | . . . . . . Terrain Destroyed 27 | . . . . . 27 Melee . | . . . . . . Projectile . | . . . . . . AOE 27 | . . . . . 27 Terrain Rammed . | . . . . . . Walls Destroyed . | . . . . . . Machines Disabled . | . . . . . . Actions | -11 -10 -10 -10 -9 -8 --------- Run | Yrd Mat Min Exi Min Mat Total 4826 | 119 1574 739 767 143 1484 Wait 784 | 1 162 69 . 12 540 Move 3704 | 98 1349 649 761 123 724 Hop . | . . . . . . Pick Up 39 | 14 12 1 2 . 10 Fast Attach 9 | . 7 . . . 2 Attach 18 | 5 3 . . . 10 Detach . | . . . . . . Swap 14 | 1 2 2 2 1 6 Drop 18 | . 10 2 2 . 4 Fire 101 | . 29 16 . 7 49 Melee . | . . . . . . Ram 1 | . . . . . 1 Kick 138 | . . . . . 138 Crush . | . . . . . . Escape Stasis . | . . . . . . Rewire . | . . . . . . Trap . | . . . . . . Miscellaneous . | . . . . . . Route ------- -11/Scrapyard -10/Materials (discovered 5 exits: *Mat x3 / *Min / *Sub) -10/Mines (discovered 4 exits: *Mat x2 / *Exi / *Sub) -10/Exiles (discovered 2 exits: *Min x2) -9/Mines (discovered 2 exits: *Mat x2) -8/Materials (discovered 1 exit: *Fac) History --------- Turn | Location | Event 9 | -11/Scrapyard | Identified exit to Materials 9 | -11/Scrapyard | Discovered exit to Materials (range 15) 138 | -11/Scrapyard | Entered Materials 138 | -10/Materials | Evolved 1 slot: Propulsion x1 274 | -10/Materials | Identified exit to Mines 274 | -10/Materials | Discovered exit to Mines (range 7) 309 | -10/Materials | Build established: Hacker-Mutant 403 | -10/Materials | Identified exit to Materials 403 | -10/Materials | Discovered exit to Materials (range 13) 473 | -10/Materials | Discovered exit to Materials (range 5) 611 | -10/Materials | Identified exit to Subcaves 611 | -10/Materials | Discovered exit to Subcaves (range 6) 726 | -10/Materials | Discovered exit to Materials (range 16) 938 | -10/Materials | Derelicts attacked the area 958 | -10/Materials | Learned location of 1 exit from Recycling 1049 | -10/Materials | Learned location of 1 exit from Storage 1081 | -10/Materials | Learned location of 2 exits from Mines 1175 | -10/Materials | Learned location of 2 exits from Mines 1697 | -10/Materials | Repaired Lgt. Nuclear Core 1725 | -10/Materials | Repaired Med. Laser 1752 | -10/Materials | Repaired Aluminum Leg 1780 | -10/Materials | Repaired Assault Rifle 1807 | -10/Materials | Repaired Aluminum Leg 2038 | -10/Materials | Entered Mines 2040 | -10/Mines | Identified exit to Exiles 2292 | -10/Mines | Deemed a non-threat by the Exiles lab entrance 2527 | -10/Mines | Received a Rocket Launcher from a helpful Derelict 2939 | -10/Mines | Entered Exiles 2957 | -10/Exiles | Identified exit to Mines 2957 | -10/Exiles | Discovered exit to Mines (range 15) 2974 | -10/Exiles | Met 8R-AWN 2998 | -10/Exiles | Met EX-HEX 3055 | -10/Exiles | Met EX-BIN 3073 | -10/Exiles | Aligned with FarCom system 3074 | -10/Exiles | Given EX-Vault access code 3141 | -10/Exiles | Opened EX-Vault 3148 | -10/Exiles | Found Prototype Leg 3150 | -10/Exiles | Found Prototype Leg 3154 | -10/Exiles | Identified Potential Leg (x2) 3179 | -10/Exiles | Warned to stay clear of 0b10 Research branches 3208 | -10/Exiles | Met EX-DEC 3213 | -10/Exiles | Learned location of Zion (-7) 3302 | -10/Exiles | Discovered exit to Mines (range 10) 3405 | -10/Exiles | Visited The Gauntlet 3742 | -10/Exiles | Left Exiles lab with Potential Leg 3742 | -10/Exiles | Entered Mines 3743 | -9/Mines | Identified exit to Materials 3759 | -9/Mines | Assembled infested the area 3764 | -9/Mines | Assisted by a Guerilla fighting off Assembled 3843 | -9/Mines | A weapon hastily lodged in a ceiling crevice suddenly fell to the ground 3900 | -9/Mines | Entered Materials 3900 | -8/Materials | Evolved 4 slots: Power x1, Propulsion x1, Utility x2 5182 | -8/Materials | Garrison activated, responded to threat 5229 | -8/Materials | Identified exit to Factory 5229 | -8/Materials | Discovered exit to Factory (range 10) 5356 | -8/Materials | Lost 6 parts (1p3n1u1w) 5368 | -8/Materials | Core integrity fell below 50% 5551 | -8/Materials | Core integrity fell below 20% 5571 | -8/Materials | Destroyed by S-10 Pest with Light Assault Rifle Last Messages --------------- Kicked Y-45 Defender. Kicked Y-45 Defender out of the way. Kicked Y-45 Defender. Kicked Y-45 Defender out of the way. Kicked Y-45 Defender. Kicked Y-45 Defender out of the way. Kicked Y-45 Defender. Potential Leg destroyed. Slammed into Y-45 Defender. Y-45 Defender destroyed. CC,DL3XK A/IRWJAAEPLT5JDJ#OS Connecting with Terminal... K-01 Serf cleans the Terminal. K-01 Serf cleans the Garrison Access. W-25 Informer distress signal alerts nearby ally. K-01 Serf cleans the Garrison Access. K-01 Serf cleans the Terminal. K-01 Serf cleans the Material Compactor. [Achievement: Back For More] Map ----- +----------------------------------------------------+ | ?????????????????######?# # ### %% % | | ?????????????????# # ######?# % ####### | | ?????????????????# # ######## %# +####### | | ????????????????????? + # # %#^% | | ????????????????????????# # # # | | ????????????????????????# # # # | | ????????????????????????# # # # | | ????????????????????????# # ! # # | | ????????????????????????# # + # """ | | ????????????????????????# # # # """ | | ????????????????????????# + # + """ | | ??????????????########### # # ########## | | ??????????????# ## # # ## | | ??????????????#""" * ## ######### ## | | ??????????????#""" # k ####### # | | ??????????????#""" ! # "" # | | ??????????????# + T T + === | | ??????????????#""" ""# # == | | ??????????????#""" T"# ! ###+### # == | | ??????????????#""" ""## ### ####### ] | | ??????????????# ## w#?# #?????# | | ??????????????########### #?# #?????#####+### | | ?????????????????######## #?# #?????????# #?? | | ???????????????### ### #?????????# #?? | | ???????? ^ s + #?????????# #?? | | ???????????####### """@s ### #?????????# ### | | ?????????????????# r"""""sg#?# #?????????# | | ???????????????#"" ^"""""k #?# #?????# | | ???????????????#"T """"" "#######?????## # | | ???????????????#"" """ T#????????????##?##### | | ???????????????### g "#???????????????????? | | ?????????????????" ##???????????????????? | | ??????????????????? ??""" "????????????????????? | | ????????????????????????"" ????????????????????? | | ????????????????????????"" ""???????????????????? | | ?????????????????????????? ##???????????????????? | | ?????????????????????????? ????????????????????? | | ????????????Y?????????????? ????????????????????? | | ??????????????????????????? ????????????????????? | | ????????????????????????????#????????????????????? | | ?????????????????????????????????????????????????? | | ?????????????????????????????????????????????????? | | ?????????????????????????????????????????????????? | | ?????????????????????????????????????????????????? | | ?????????????????????????????????????????????????? | | ?????????????????????????????????????????????????? | | ?????????????????????????????????????????????????? | | ?????????????????????????????????????????????????? | | ?????????????????????????????????????????????????? | | ?????????????????????????????????????????????????? | +----------------------------------------------------+ Best States ------------- Heat Dissipation 45 Energy Generation 23 Energy Capacity 310 Matter Stores 300 Matter Capacity 300 Sight Range 18 Terrain Scan Range 14 Terrain Scan Density 10 Resistance: KI 35 Resistance: TH 35 Resistance: EX 35 Resistance: EM 35 Resistance: I 35 Resistance: S 35 Resistance: P 35 Evasion (%) 55 Targeting Accuracy 8 Offensive Hacking 20 Item Schematics ----------------- Sensor Array | -10/Materials | Hacked Aluminum Leg | -10/Materials | Hacked Signal Interpreter | -10/Materials | Hacked Seismic Detector | -10/Materials | Hacked Welding Torch | -10/Materials | Hacked Lgt. Ion Engine | -10/Materials | Hacked Structural Scanner | -10/Materials | Hacked Robot Schematics ------------------ None Fabricated ------------ Nothing Repaired ---------- Lgt. Nuclear Core | 50% | -10/Materials Med. Laser | 47% | -10/Materials Aluminum Leg | 58% | -10/Materials Assault Rifle | 63% | -10/Materials Aluminum Leg | 75% | -10/Materials Studied --------- None Alien Tech Used ----------------- None Achievements -------------- Back For More For Emergencies Only Resistances Are Futile Sixth Sense Spot Them First Sprinter There's More Where That Came From Challenges ------------ None Game ------ Seed AutogunPlasmaRedistributor Manual? 0 Play Time 01:31:04 Cumulative 36.0 hours Start 2026.02.14 @ 13:26:17 End 2026.02.14 @ 22:09:00 Sessions 1 Manual Loads 0 Difficulty Explorer Special Mode None Game No. 52 Rogue 1 Adventurer 3 Explorer 48 Win Type - Total 0 Types 0/0/0/0/0/0/0/0/0/0 Lore% 15 Gallery% 17 Achievement% 14 Wizard Run 0 Options --------- Layout 1 ASCII 0 Keyboard 0 Movement Numpad Keybinds 0 Fullscreen 1 Font 32/SmallcapsGlow Map View 50x35 Zoom Use 0% Tactical HUD 0 Map Filters NONE Filters NONE Steam 1 RUN: bd0043fe-a29f-4786-96fd-1aa851381735